{"text_format":"1","workbook":"xlsx","n_sheets":1,"sheets":["TDSheet"],"not_rendered":{"charts":0,"images":0,"macros":0,"external_links":0,"defined_names":2,"comments":0,"pivot_tables":0},"unopened":[],"bounds":{"document_bytes":16777216,"sheet_cells":100000,"rows_first":2000,"rows_last":500,"rows_between":2000,"halvings":0,"cell_chars":16384,"cell_head_chars":4096},"cells_cut":0,"cells_raw":0,"read":"whole","date_system":"1900"}

{"sheet":"TDSheet","index":0,"n_rows":48,"n_cols":14,"rows_kept":48,"cut":false,"hidden":false,"merged":[[0,1,0,5]]}
[null,"Прайс-лист"]
[null,"ООО \"Ромашка\""]
[]
[null,"Цены указаны на 13.02.2019"]
[]
[]
[]
[]
[]
[null,"Столбец1","Столбец2","Столбец3","Столбец4","Столбец5",null,"Категория","Производитель","Модель","Размер","Изображение","Мелко-оптовая Цена","Мелко-оптовая Ед."]
[null,"Ценовая группа/ Номенклатура/ Характеристика номенклатуры","Изображение","Мелко-оптовая",null,"Level",null,"Товары розница","BAMBINI","066-351911","066-351911 Туфли Школьная Бордовый Дев. р.32",null,300,"пар"]
[null,null,null,"Цена","Ед.",null,null,"Товары розница","DOMINO","306-2K_D","306-2K_D Туфли комнатные Малодетская/дошкольная Серый Мал. р.27/28",null,390,"пар"]
[null,null,null,null,null,{"$f":"rl","v":1},null,"Товары розница","DOMINO","306-3K_D","306-3K_D Туфли комнатные Малодетская/дошкольная Синий Мал. р.27/28",null,390,"пар"]
[null,"Товары розница",null,null,null,{"$f":"rl","v":2},null,"Товары розница","DOMINO","309-1K_D","309-1K_D Туфли комнатные Малодетская/дошкольная Синий М/Д. р.27/28",null,390,"пар"]
[null,"BAMBINI",null,null,null,{"$f":"rl","v":3},null,"Товары розница","DOMINO","309-3K_D","309-3K_D Туфли комнатные Малодетская/дошкольная Голубой М/Д. р.27/28",null,390,"пар"]
[null,"066-351911",null,null,null,{"$f":"rl","v":4},null,"Товары розница","DUMMI","32820_N","32820_N Туфли Школьная/девичья Черный Дев. р.35",null,500,"пар"]
[null,"066-351911 Туфли Школьная Бордовый Дев. р.32",null,300,"пар",{"$f":"rl","v":5},null,"Товары розница","EL TEMPO","03820-1_QPN_black","03820-1_QPN_black Ботинки Дошкольная Черный Мал. р.26",null,1889,"пар"]
[null,"DOMINO",null,null,null,{"$f":"rl","v":3},null,"Товары розница","EL TEMPO","03820-1_QPN_black","03820-1_QPN_black Ботинки Дошкольная Черный Мал. р.29",null,1889,"пар"]
[null,"306-2K_D",null,null,null,{"$f":"rl","v":4},null,"Товары розница","EL TEMPO","03820-1_QPN_navy","03820-1_QPN_navy Ботинки Дошкольная Синий Мал. р.27",null,1790,"пар"]
[null,"306-2K_D Туфли комнатные Малодетская/дошкольная Серый Мал. р.27/28",null,390,"пар",{"$f":"rl","v":5},null,"Товары розница","EL TEMPO","1007_VUA_blue-red","1007_VUA_blue-red Туфли открытые Ясельная/малодетская Голубо-красный Мал. р.21",null,890,"пар"]
[null,"306-3K_D",null,null,null,{"$f":"rl","v":4},null,"Товары розница","EL TEMPO","1007_VUA_grey-red","1007_VUA_grey-red Туфли открытые Ясельная/малодетская Серо-красный Мал. р.20",null,1490,"пар"]
[null,"306-3K_D Туфли комнатные Малодетская/дошкольная Синий Мал. р.27/28",null,390,"пар",{"$f":"rl","v":5},null,"Товары розница","EL TEMPO","1008_POA_biruza","1008_POA_biruza Сапоги Малодетская/дошкольная Бирюзовый Дев. р.25",null,1090,"пар"]
[null,"309-1K_D",null,null,null,{"$f":"rl","v":4},null,"Товары розница","EL TEMPO","1008_POA_biruza","1008_POA_biruza Сапоги Малодетская/дошкольная Бирюзовый Дев. р.27",null,1090,"пар"]
[null,"309-1K_D Туфли комнатные Малодетская/дошкольная Синий М/Д. р.27/28",null,390,"пар",{"$f":"rl","v":5},null,"Товары розница","EL TEMPO","1115_EPI_black","1115_EPI_black Сапоги Школьная/девичья Черный Дев. р.40",null,1090,"пар"]
[null,"309-3K_D",null,null,null,{"$f":"rl","v":4},null,"Товары розница","EL TEMPO","1202_PCK_grey","1202_PCK_grey Сапоги Школьная/девичья Серый Дев. р.35",null,990,"пар"]
[null,"309-3K_D Туфли комнатные Малодетская/дошкольная Голубой М/Д. р.27/28",null,390,"пар",{"$f":"rl","v":5},null,"Товары розница","EL TEMPO","1202_PCK_grey","1202_PCK_grey Сапоги Школьная/девичья Серый Дев. р.36",null,990,"пар"]
[null,"DUMMI",null,null,null,{"$f":"rl","v":3},null,"Товары розница","EL TEMPO","1202_PCK_grey","1202_PCK_grey Сапоги Школьная/девичья Серый Дев. р.37",null,990,"пар"]
[null,"32820_N",null,null,null,{"$f":"rl","v":4}]
[null,"32820_N Туфли Школьная/девичья Черный Дев. р.35",null,500,"пар",{"$f":"rl","v":5}]
[null,"EL TEMPO",null,null,null,{"$f":"rl","v":3}]
[null,"03820-1_QPN_black",null,null,null,{"$f":"rl","v":4}]
[null,"03820-1_QPN_black Ботинки Дошкольная Черный Мал. р.26",null,1889,"пар",{"$f":"rl","v":5}]
[null,"03820-1_QPN_black Ботинки Дошкольная Черный Мал. р.29",null,1889,"пар",{"$f":"rl","v":5}]
[null,"03820-1_QPN_navy",null,null,null,{"$f":"rl","v":4}]
[null,"03820-1_QPN_navy Ботинки Дошкольная Синий Мал. р.27",null,1790,"пар",{"$f":"rl","v":5}]
[null,"1007_VUA_blue-red",null,null,null,{"$f":"rl","v":4}]
[null,"1007_VUA_blue-red Туфли открытые Ясельная/малодетская Голубо-красный Мал. р.21",null,890,"пар",{"$f":"rl","v":5}]
[null,"1007_VUA_grey-red",null,null,null,{"$f":"rl","v":4}]
[null,"1007_VUA_grey-red Туфли открытые Ясельная/малодетская Серо-красный Мал. р.20",null,1490,"пар",{"$f":"rl","v":5}]
[null,"1008_POA_biruza",null,null,null,{"$f":"rl","v":4}]
[null,"1008_POA_biruza Сапоги Малодетская/дошкольная Бирюзовый Дев. р.25",null,1090,"пар",{"$f":"rl","v":5}]
[null,"1008_POA_biruza Сапоги Малодетская/дошкольная Бирюзовый Дев. р.27",null,1090,"пар",{"$f":"rl","v":5}]
[null,"1115_EPI_black",null,null,null,{"$f":"rl","v":4}]
[null,"1115_EPI_black Сапоги Школьная/девичья Черный Дев. р.40",null,1090,"пар",{"$f":"rl","v":5}]
[null,"1202_PCK_grey",null,null,null,{"$f":"rl","v":4}]
[null,"1202_PCK_grey Сапоги Школьная/девичья Серый Дев. р.35",null,990,"пар",{"$f":"rl","v":5}]
[null,"1202_PCK_grey Сапоги Школьная/девичья Серый Дев. р.36",null,990,"пар",{"$f":"rl","v":5}]
[null,"1202_PCK_grey Сапоги Школьная/девичья Серый Дев. р.37",null,990,"пар",{"$f":"rl","v":5}]